bitfinex-derivatives/quotes_SOLF0:USTF0_20240930
["timestamp","ask_amount","ask_price","bid_price","bid_amount"]
[1727717105767,0.12502,155.27,155.26,13.1408]
[1727717106162,0.12502,155.27,155.26,3.2208]
[1727717106368,0.12502,155.27,155.25,3.221]
[1727717109060,3.34562,155.27,155.25,3.221]
[1727717109265,0.12502,155.27,155.25,3.221]
[1727717109765,0.12502,155.27,155.26,3.2208]
[1727717109961,0.12502,155.27,155.26,13.1408]
[1727717110262,0.12502,155.27,155.26,16.43946217]
[1727717110969,10.04502,155.33,155.26,16.43946217]
[1727717110970,13.26452,155.33,155.3,3.22]
[1727717111669,10.04502,155.33,155.3,3.22]
[1727717111871,3.2196,155.32,155.3,3.22]
[1727717112572,0.12502,155.33,155.28,9.92]
[1727717112769,0.12502,155.33,155.26,3.29866217]
[1727717112770,0.12502,155.33,155.29,9.92]
[1727717113074,0.12502,155.33,155.3,9.92]
[1727717113870,0.12502,155.33,155.31,3.2197]
[1727717114264,0.12502,155.33,155.3,9.92]
[1727717114674,0.12502,155.33,155.32,3.2196]
[1727717114874,0.12502,155.33,155.29,9.92]
[1727717115291,0.12502,155.33,155.32,3.2196]
[1727717119487,0.12502,155.33,155.31,13.1397]
[1727717120591,0.12502,155.33,155.32,3.2196]
[1727717120988,1.10486554,155.33,155.32,3.2196]
[1727717124084,4.32436554,155.33,155.3,13.1399]
[1727717124280,3.34452,155.33,155.3,9.92]
[1727717124692,0.12502,155.33,155.31,3.2197]
[1727717129689,0.12502,155.33,155.31,12.1297]
[1727717130097,0.12502,155.33,155.28,1.3325]
[1727717130395,9.03502,155.33,155.29,12.1301]
[1727717130592,3.2197,155.32,155.29,8.91]
[1727717130796,3.2197,155.32,155.29,3.22]
[1727717130995,3.2197,155.32,155.29,8.91]
[1727717132401,3.2197,155.32,155.3,3.22]
[1727717133002,3.2197,155.32,155.28,1.3325]
[1727717133003,0.12502,155.33,155.32,3.2196]
[1727717134004,0.12502,155.33,155.31,3.2197]
[1727717135703,3.34442,155.33,155.31,3.2197]
[1727717140208,0.12502,155.33,155.29,8.91]
[1727717141201,0.12502,155.33,155.3,8.91]
[1727717141397,3.2196,155.32,155.3,12.13]
[1727717142107,3.34452,155.33,155.31,3.2198]
[1727717142503,0.12502,155.33,155.3,8.91]
[1727717142903,3.2196,155.32,155.3,12.1299]
[1727717143509,0.12502,155.33,155.3,8.91]
[1727717143716,3.34452,155.33,155.31,3.2196]
[1727717145114,3.2196,155.32,155.3,12.1299]
[1727717146015,3.34452,155.33,155.31,3.2198]
[1727717146607,3.2199,155.31,155.29,3.2201]
[1727717146909,9.03502,155.33,155.28,10.2425]
[1727717147313,3.2196,155.32,155.29,3.2201]
[1727717150615,3.2198,155.31,155.29,3.2201]
[1727717150819,3.2198,155.31,155.29,12.1301]
[1727717152726,3.2197,155.32,155.3,3.22]
[1727717153715,3.34452,155.33,155.3,3.22]
[1727717154120,3.34452,155.33,155.31,3.2198]
[1727717154517,3.34452,155.33,155.3,8.91]
[1727717155028,3.34452,155.33,155.3,12.1299]
[1727717155722,0.12502,155.33,155.3,12.1299]
[1727717155923,3.2196,155.32,155.3,12.1299]
[1727717156926,3.2196,155.32,155.3,3.2199]
[1727717160224,0.12502,155.33,155.29,8.91]
[1727717160525,3.2196,155.32,155.29,12.1302]
[1727717162024,3.2196,155.32,155.3,3.22]
[1727717162927,3.34442,155.33,155.31,12.1298]
[1727717163430,3.34442,155.33,155.31,8.91]
[1727717163930,3.34442,155.33,155.31,12.1298]
[1727717164326,3.34442,155.33,155.31,3.2198]
[1727717164626,3.34442,155.33,155.3,3.2199]
[1727717165222,3.2196,155.32,155.3,3.2199]
[1727717165425,0.12502,155.33,155.29,12.1302]
[1727717165624,3.2199,155.31,155.29,12.1302]
[1727717166826,3.2204,155.28,155.27,69.56]
[1727717167030,3.2204,155.28,155.23,84.62065188]
[1727717167219,3.2204,155.28,155.25,8.91]
[1727717167425,8.91,155.26,155.21,8.05215706]
[1727717167731,8.91,155.26,155.22,7.53606073]
[1727717167929,8.91,155.26,155.23,3.2214]
[1727717168131,8.91,155.26,155.21,0.12502]
[1727717168324,4.47295798,155.3,155.21,0.12502]
[1727717168325,8.91,155.25,155.21,0.12502]
[1727717168525,3.2213,155.24,155.21,0.12502]
[1727717168727,8.91,155.25,155.21,0.12502]
[1727717169230,3.2215,155.23,155.21,0.12502]
[1727717170218,3.2213,155.24,155.21,3.34682]
[1727717170824,3.2213,155.24,155.21,12.25682]
[1727717172928,3.2213,155.24,155.21,3.34682]
[1727717175133,12.1317,155.22,155.21,0.12502]
[1727717179240,3.2217,155.22,155.21,0.12502]
[1727717179437,12.1317,155.22,155.21,0.12502]
[1727717180839,3.2217,155.22,155.21,0.12502]
[1727717181040,12.1317,155.22,155.21,0.12502]
[1727717184144,3.2217,155.22,155.21,0.12502]
[1727717184437,12.1317,155.22,155.21,0.12502]
[1727717187445,3.2229,155.16,155.15,0.12502]
[1727717198551,12.1329,155.16,155.15,0.12502]
[1727717202760,3.2229,155.16,155.15,0.12502]
[1727717203058,12.1329,155.16,155.15,0.12502]
[1727717208555,12.1429,155.16,155.15,0.12502]
[1727717211357,3.224,155.11,155.09,0.12502]
[1727717211558,8.92,155.1,155.09,0.12502]
[1727717211961,12.1442,155.1,155.09,0.12502]
[1727717221370,12.1437,155.13,155.1,3.2241]
[1727717221773,8.92,155.13,155.1,3.2241]
[1727717223276,3.2238,155.12,155.1,3.2241]
[1727717226576,8.92,155.13,155.09,0.12502]
[1727717226771,92.26962384,155.19,155.12,3.2237]
[1727717226971,8.92,155.14,155.12,3.2237]
[1727717228281,12.1435,155.14,155.11,3.2238]
[1727717228678,8.92,155.13,155.11,3.2238]
[1727717229478,12.1436,155.13,155.11,3.2238]
[1727717230081,3.224,155.11,155.09,3.34932]
[1727717230987,12.1442,155.1,155.09,0.12502]
[1727717232288,3.2249,155.07,155.03,121.79025122]
[1727717232483,8.92,155.06,155.04,7.54454285]
[1727717232686,8.92,155.06,155.05,7.54454285]
[1727717233490,3.2252,155.05,155.03,69.78502]
[1727717233682,12.1452,155.05,155.03,69.78502]
[1727717233987,8.92,155.05,155.03,69.78502]
[1727717234591,12.1453,155.05,155.03,69.78502]
[1727717234984,1.2593,155.12,155.03,78.70502]
[1727717235286,8.92,155.07,155.03,78.70502]
[1727717235491,8.92,155.07,155.05,3.2251]
[1727717236290,3.2248,155.07,155.05,3.2251]
[1727717236588,12.1448,155.07,155.05,3.2251]
[1727717237886,8.92,155.07,155.05,3.2251]
[1727717238487,8.92,155.07,155.03,0.12502]
[1727717238691,8.92,155.05,155.03,0.12502]
[1727717239386,12.1453,155.05,155.03,3.35062]
[1727717239586,12.1453,155.05,155.03,0.12502]
[1727717241381,12.1453,155.05,155.03,3.35062]
[1727717242889,12.1453,155.05,155.03,0.12502]
[1727717244389,12.1454,155.04,155.03,0.12502]
[1727717245398,8.92,155.04,154.98,70.9392]
[1727717245600,8.92,154.99,154.98,69.66]
[1727717245890,8.92,154.99,154.93,2.5339]
[1727717245891,12.1464,154.99,154.96,3.227]
[1727717246096,8.92,154.98,154.96,3.227]
[1727717246390,8.92,154.98,154.97,0.12502]
[1727717246391,12.1467,154.98,154.97,0.12502]
[1727717247295,8.92,154.99,154.97,0.12502]
[1727717248295,3.2264,155.0,154.97,0.12502]
[1727717248490,12.1464,155.0,154.97,0.12502]
[1727717248688,2.4954,155.06,154.97,0.12502]
[1727717248888,8.92,155.02,155.0,3.2262]
[1727717249688,3.2258,155.03,154.99,3.2264]
[1727717249889,1.3231,155.06,154.99,8.92]
[1727717250091,8.92,155.06,155.0,8.92]
[1727717250396,8.92,155.06,155.02,3.2257]
[1727717250397,3.2252,155.05,155.02,3.2257]
[1727717251290,8.92,155.06,155.03,3.2256]
[1727717251487,3.2247,155.08,154.99,2.5761]
[1727717251793,8.92,155.08,155.03,8.92]
[1727717253398,3.2248,155.07,155.03,8.92]
[1727717253797,8.92,155.04,154.99,2.5761]
[1727717254097,8.92,155.02,155.01,3.2259]
[1727717254406,8.92,155.02,154.99,1.2321]
[1727717254592,8.92,155.01,155.0,3.2261]
[1727717254795,8.92,155.01,154.98,1.3265]
[1727717254998,8.92,154.99,154.98,1.3265]
[1727717255497,8.92,155.0,154.98,1.3265]
[1727717255994,8.92,155.03,154.98,10.2465]
[1727717256194,8.92,155.01,154.99,3.2263]
[1727717257800,8.92,155.01,154.98,1.3265]
[1727717258001,3.2255,155.04,154.98,1.3265]
[1727717258200,8.92,155.04,155.0,8.92]
[1727717258600,8.92,155.04,155.02,3.2257]
[1727717259599,3.2246,155.08,155.04,3.2252]
[1727717259804,8.92,155.08,155.03,8.92]
[1727717260108,3.225,155.06,155.03,3.2255]
[1727717260304,8.92,155.05,155.03,3.2255]
[1727717260705,1.3145,155.11,155.03,8.92]
[1727717260911,8.92,155.08,155.03,8.92]
[1727717261203,3.34942,155.09,155.05,8.92]
[1727717261410,0.12502,155.09,155.06,8.92]
[1727717261607,0.12502,155.09,155.04,13.93]
[1727717261806,0.12502,155.09,155.04,17.10257529]
[1727717262206,0.12502,155.09,155.04,13.93]
[1727717262912,0.12502,155.09,155.05,3.2251]
[1727717263108,0.12502,155.09,155.04,13.93]
[1727717263509,0.12502,155.09,155.04,17.07741148]
[1727717264104,0.12502,155.09,155.08,3.2246]
[1727717264812,0.12502,155.09,155.04,13.93]
[1727717265302,0.12502,155.09,155.07,3.2247]
[1727717266111,3.2246,155.08,155.06,3.225]
[1727717266709,3.2246,155.08,155.02,83.61]
[1727717266908,3.2246,155.08,155.05,3.2251]
[1727717267109,0.12502,155.09,155.02,83.61]
[1727717267405,3.34952,155.09,155.02,83.61]
[1727717268216,3.34952,155.09,155.06,3.2248]
[1727717268516,3.34952,155.09,155.02,83.61]
[1727717269205,3.34952,155.09,155.07,3.2247]
[1727717272916,0.12502,155.09,155.07,3.2247]
[1727717274218,0.12502,155.09,155.04,13.93]
[1727717274719,0.12502,155.09,155.08,3.2246]
[1727717277215,0.12502,155.09,155.08,17.1546]
[1727717277526,0.12502,155.15,155.13,3.2235]
[1727717277527,3.34822,155.15,155.13,3.2235]
[1727717277919,0.12502,155.15,155.1,13.93]
[1727717279825,0.12502,155.15,155.13,3.2234]
[1727717280815,0.12502,155.15,155.1,13.93]
[1727717281024,14.05502,155.15,155.1,3.224]
[1727717281326,13.93,155.11,155.07,69.66]
[1727717281825,3.162996,155.13,155.07,69.66]
[1727717281826,12.1446,155.08,155.07,69.66]
[1727717282225,8.92,155.08,155.07,69.66]
[1727717282418,8.92,155.08,155.07,72.8848]
[1727717283319,12.1445,155.09,155.07,72.8848]
[1727717283517,3.2245,155.09,155.07,72.8848]
[1727717283815,3.2245,155.09,155.07,3.2248]
[1727717284118,13.93,155.09,155.03,0.12502]
[1727717284818,3.225,155.06,155.04,3.2253]
[1727717285221,3.2248,155.07,155.04,3.2253]
[1727717285624,13.93,155.09,155.04,3.2253]
[1727717285919,13.93,155.09,155.03,0.12502]
[1727717286219,13.93,155.09,155.03,3.35052]
[1727717286527,3.2251,155.06,155.03,3.35052]
[1727717286920,13.93,155.07,155.03,0.12502]
[1727717287123,3.2252,155.05,155.03,0.12502]
[1727717288025,3.2254,155.04,155.03,0.12502]
[1727717288616,13.93,155.06,155.03,0.12502]
[1727717288821,13.93,155.1,155.04,3.2254]
[1727717289028,13.93,155.1,155.03,0.12502]
[1727717289227,3.2245,155.09,155.05,3.2252]
[1727717289428,13.93,155.1,155.05,3.2252]
[1727717290228,3.2247,155.08,155.05,3.2252]
[1727717291023,3.2248,155.07,155.05,3.2252]
[1727717292123,3.2248,155.07,155.03,0.12502]
[1727717292326,3.2252,155.06,155.03,3.35052]
[1727717292626,13.93,155.06,155.03,0.12502]
[1727717292843,17.1554,155.04,155.03,0.12502]
[1727717293123,17.1554,155.04,154.97,0.12502]
[1727717293124,13.93,155.04,154.97,0.12502]
[1727717293325,3.2264,155.0,154.97,0.12502]
[1727717293924,3.2265,154.99,154.97,0.12502]
[1727717294727,3.2263,155.0,154.97,0.12502]
[1727717295229,3.2263,155.0,154.97,3.35172]
[1727717295626,13.93,155.02,154.97,3.35172]
[1727717295826,3.2261,155.01,154.97,3.35172]
[1727717296027,13.93,155.02,154.97,3.35172]
[1727717296521,3.2264,155.0,154.97,3.35172]
[1727717297130,3.2264,155.0,154.97,0.12502]
[1727717298828,13.93,155.02,154.97,0.12502]
[1727717299124,3.2265,154.99,154.97,0.12502]
[1727717300629,3.2265,154.99,154.97,3.35192]
[1727717303735,13.93,155.02,154.97,3.35192]
[1727717303935,17.23344837,155.04,154.97,0.12502]
[1727717304134,13.93,155.04,154.97,0.12502]
[1727717304533,3.226,155.01,154.97,0.12502]
[1727717305337,2.4494,155.06,154.97,0.12502]
[1727717305338,15.21,155.06,155.0,3.2261]
[1727717305834,1.2779,155.07,154.97,14.05502]
[1727717306136,1.2779,155.07,154.98,5.8046549]
[1727717306535,3.2255,155.04,154.98,5.8046549]
[1727717306737,1.2779,155.07,154.98,2.6455]
[1727717307533,3.2254,155.04,155.01,3.2259]
[1727717311541,12.1454,155.04,155.01,3.2259]
[1727717312944,3.2257,155.03,155.01,3.2259]
[1727717317243,8.92,155.04,154.98,11.5655]
[1727717317443,8.92,155.0,154.98,1.3218]
[1727717317755,8.92,154.99,154.97,0.12502]
[1727717318048,8.92,154.99,154.97,3.35172]
[1727717318347,8.92,154.99,154.97,0.12502]
[1727717318842,12.1464,155.0,154.97,0.12502]
[1727717319345,12.1464,155.0,154.98,3.2267]
[1727717321140,12.1464,155.0,154.97,0.12502]
[1727717321337,12.1464,155.0,154.97,3.35182]
[1727717322943,3.2265,154.99,154.97,3.35182]
[1727717325653,12.1464,155.0,154.97,0.12502]
[1727717325954,12.1464,155.0,154.98,3.2266]
[1727717326450,12.1461,155.01,154.98,3.2266]
[1727717326951,12.1461,155.01,154.99,3.2264]
[1727717329554,8.92,155.0,154.97,0.12502]
[1727717329749,12.1467,154.98,154.97,0.12502]
[1727717334652,3.2267,154.98,154.97,0.12502]
[1727717334851,3.2265,154.99,154.97,0.12502]
[1727717336247,3.2267,154.98,154.97,0.12502]
[1727717338462,3.2265,154.99,154.97,3.35192]
[1727717341662,3.2267,154.98,154.97,0.12502]
[1727717341850,12.1467,154.98,154.97,0.12502]
[1727717343254,3.2267,154.98,154.97,0.12502]
[1727717343455,12.1467,154.98,154.97,0.12502]
[1727717349361,3.2265,154.99,154.97,3.35192]
[1727717349565,8.92,155.0,154.97,0.12502]
[1727717350157,3.2264,154.99,154.97,0.12502]
[1727717352370,8.92,155.0,154.97,0.12502]
[1727717352570,12.1467,154.98,154.97,0.12502]
[1727717353571,8.92,154.98,154.97,0.12502]
[1727717355062,12.1463,155.0,154.97,0.12502]
[1727717355472,8.92,155.0,154.97,0.12502]
[1727717356063,3.2266,154.99,154.97,3.35182]
[1727717356269,8.92,155.0,154.97,0.12502]
[1727717356673,8.92,154.99,154.97,0.12502]
[1727717357076,3.2267,154.98,154.97,0.12502]
[1727717360880,3.2276,154.94,154.91,0.12502]
[1727717361068,8.92,154.93,154.92,7.24046274]
[1727717361274,8.92,154.93,154.91,0.12502]
[1727717362478,12.1477,154.93,154.91,0.12502]
[1727717362782,12.1479,154.92,154.91,0.12502]
[1727717363280,8.92,154.95,154.91,0.12502]
[1727717364382,3.2276,154.94,154.92,3.2279]
[1727717365378,1.3633,154.98,154.91,0.12502]
[1727717365682,8.92,154.97,154.92,8.92]
[1727717365978,3.2271,154.96,154.93,3.2276]
[1727717367178,1.3633,154.98,154.92,3.2278]
[1727717367179,8.92,154.94,154.92,3.2278]
[1727717368584,12.1476,154.94,154.92,3.2278]
[1727717369475,12.1476,154.94,154.91,0.12502]
[1727717371282,12.1476,154.94,154.92,3.2279]
[1727717371483,12.1476,154.94,154.91,0.12502]
[1727717371881,12.1476,154.94,154.91,3.35302]
[1727717372477,12.1476,154.94,154.92,3.2279]
[1727717375487,8.92,154.93,154.92,3.2279]
[1727717375674,12.1477,154.93,154.91,3.35312]
[1727717375885,8.92,154.93,154.91,0.12502]
[1727717377277,8.92,154.93,154.92,3.2279]
[1727717377474,3.2276,154.94,154.92,3.2279]
[1727717377790,12.1476,154.94,154.92,3.2279]
[1727717377982,1.3633,154.98,154.93,8.92]
[1727717378185,8.92,154.98,154.93,8.92]
[1727717378579,3.2269,154.97,154.94,3.2274]
[1727717379082,12.1469,154.97,154.94,3.2274]
[1727717379282,3.2271,154.96,154.94,3.2274]
[1727717380790,12.1471,154.96,154.94,3.2274]
[1727717381282,3.2273,154.95,154.93,3.2276]
[1727717382387,3.2273,154.95,154.91,1.47852]
[1727717382687,12.1475,154.94,154.92,3.2278]
[1727717382883,8.92,154.93,154.91,0.12502]
[1727717383281,12.1478,154.93,154.91,0.12502]
[1727717383686,12.1478,154.93,154.91,3.35312]
[1727717384585,8.92,154.92,154.91,0.12502]
[1727717384782,12.1479,154.92,154.91,0.12502]
[1727717384986,12.1479,154.92,154.86,7.23688866]
[1727717384987,8.92,154.92,154.86,7.23688866]
[1727717385181,3.2286,154.89,154.86,3.229]
[1727717385386,8.92,154.88,154.86,3.229]
[1727717388890,3.2286,154.89,154.86,3.229]
[1727717389788,12.1486,154.89,154.86,3.229]
[1727717392999,12.1486,154.89,154.85,0.12502]
[1727717393198,12.1486,154.89,154.87,3.2289]
[1727717393892,12.1486,154.89,154.85,0.12502]
[1727717394092,12.1486,154.89,154.86,3.2291]
[1727717394296,12.1488,154.88,154.85,0.12502]
[1727717394596,12.1488,154.88,154.85,3.35422]
[1727717394796,12.1488,154.88,154.85,0.12502]
[1727717395392,12.1488,154.88,154.85,3.35432]
[1727717395790,8.92,154.86,154.85,3.35432]
[1727717399498,8.92,154.86,154.81,11.57356442]
[1727717399499,3.2298,154.83,154.81,11.57356442]
[1727717399800,8.92,154.82,154.79,81.10402]
[1727717400097,3.24720796,154.85,154.79,90.02402]
[1727717400098,8.92,154.84,154.79,90.02402]
[1727717400312,8.92,154.83,154.79,81.10402]
[1727717400492,8.92,154.83,154.81,3.2301]
[1727717401497,8.92,154.83,154.79,81.10402]
[1727717401705,8.92,154.83,154.82,3.23]
[1727717402506,8.92,154.83,154.79,11.36402]
[1727717402698,8.92,154.83,154.81,3.2301]
[1727717405005,8.92,154.83,154.82,3.23]
[1727717405207,0.12502,154.91,154.82,8.92]
[1727717405400,3.2286,154.89,154.84,8.92]
[1727717405803,8.92,154.9,154.86,8.92]
[1727717406011,12.27322,154.91,154.88,3.2286]
[1727717406206,12.27322,154.91,154.86,8.92]
[1727717406508,9.04502,154.91,154.86,8.92]
[1727717406708,3.2283,154.9,154.87,3.2289]
[1727717407309,12.1483,154.9,154.87,3.2289]
[1727717407606,3.2286,154.89,154.87,3.2289]
[1727717407812,8.92,154.9,154.88,3.2286]
[1727717408709,0.12502,154.91,154.89,3.2285]
[1727717408906,0.12502,154.91,154.87,8.92]
[1727717409111,0.12502,154.91,154.89,8.92]
[1727717409410,0.12502,154.91,154.9,3.2283]
[1727717410011,0.12502,154.91,154.9,12.1483]
[1727717410702,0.12502,154.97,154.95,3.2272]
[1727717410897,8.92,154.96,154.91,1.2949]
[1727717411102,12.1473,154.95,154.91,1.2949]
[1727717411306,12.1473,154.95,154.92,3.2277]
[1727717412010,0.12502,154.97,154.91,1.2949]
[1727717412210,3.2272,154.96,154.93,3.2276]
[1727717413011,12.27202,154.97,154.94,3.2275]
[1727717413205,12.27202,154.97,154.93,8.92]
[1727717413206,9.04502,154.97,154.93,8.92]
[1727717413707,9.04502,154.97,154.92,8.92]
[1727717413908,8.92,154.95,154.91,1.2949]
[1727717414107,8.92,154.94,154.91,1.2949]
[1727717414611,12.1475,154.94,154.91,4.5229]
[1727717415216,3.2277,154.93,154.9,3.2282]
[1727717415509,8.92,154.94,154.9,3.2282]
[1727717415705,8.92,154.94,154.89,8.92]
[1727717415906,3.2274,154.95,154.91,3.228]
[1727717416210,8.92,154.94,154.91,3.228]
[1727717416704,8.92,154.93,154.88,8.92]
[1727717417209,12.1478,154.93,154.9,3.2283]
[1727717417410,0.12502,154.97,154.89,8.92]
[1727717417609,3.2272,154.96,154.93,8.92]
[1727717417808,3.2272,154.96,154.93,12.1477]
[1727717418007,8.92,154.95,154.9,8.92]
[1727717418205,3.2277,154.94,154.87,2.6482]
[1727717418409,8.92,154.95,154.9,3.2281]
[1727717418916,8.92,154.95,154.89,8.92]
[1727717419113,3.2276,154.94,154.91,3.2281]
[1727717419504,3.2276,154.94,154.91,8.92]
[1727717419704,12.1473,154.95,154.92,3.2279]
[1727717420113,3.2273,154.95,154.92,12.1479]
[1727717420415,0.12502,154.97,154.93,8.92]
[1727717420606,0.12502,154.97,154.88,7.22678919]
[1727717420811,0.12502,154.97,154.96,8.92]
[1727717421316,0.12502,154.97,154.95,8.92]
[1727717421514,0.12502,154.97,154.95,12.1471]
[1727717423015,0.12502,154.97,154.96,3.2271]
[1727717424119,1e-08,154.97,154.96,3.2271]
[1727717425822,1e-08,154.97,154.96,12.1471]
[1727717427626,0.12502,155.03,155.01,3.2259]
[1727717428120,0.12502,155.03,155.0,8.92]
[1727717428320,0.12502,155.03,155.01,8.92]
[1727717429118,0.12502,155.03,155.02,3.2258]
[1727717430013,0.12502,155.03,154.96,69.72]
[1727717430219,0.12502,155.03,154.99,8.92]
[1727717430415,0.12502,155.03,155.02,8.92]
[1727717431018,0.12502,155.03,155.02,3.2258]
[1727717431229,0.12502,155.03,155.01,8.92]
[1727717431725,0.12502,155.03,155.02,12.1458]
[1727717436420,0.12502,155.03,155.01,12.146]
[1727717437120,0.12502,155.03,155.01,8.92]
[1727717439730,0.12502,155.03,155.02,3.2258]
[1727717440627,0.12502,155.03,155.01,12.146]
[1727717440929,9.04502,155.03,154.97,69.7]
[1727717441131,9.04502,155.03,154.99,8.92]
[1727717441329,12.27072,155.03,155.0,3.2261]
[1727717442728,9.04502,155.03,155.0,3.2261]
[1727717443629,9.04502,155.03,155.01,3.226]
[1727717444024,0.12502,155.03,155.01,3.226]
[1727717444224,0.12502,155.03,155.0,8.92]
[1727717444526,0.12502,155.03,155.02,3.2258]
[1727717444729,0.12502,155.03,155.02,12.1458]
[1727717449232,0.12502,155.03,155.02,15.43192583]
[1727717449628,0.12502,155.03,155.02,12.1458]
[1727717450132,0.12502,155.03,155.02,15.339318]
[1727717451330,0.12502,155.03,155.02,12.1458]
[1727717452721,0.12502,155.03,155.02,3.2258]
[1727717453334,0.12502,155.03,155.02,12.1458]
[1727717454935,0.12502,155.03,155.0,8.92]
[1727717455422,0.12502,155.03,155.01,3.226]
[1727717455623,9.04502,155.03,154.99,69.68]
[1727717455835,8.92,155.01,154.99,69.68]
[1727717456834,8.92,155.01,154.97,8.92]
[1727717457233,12.1459,155.02,154.97,8.92]
[1727717458031,12.1464,155.0,154.96,3.227]
[1727717458230,8.92,155.0,154.95,12.7524]
[1727717459121,8.92,155.0,154.97,12.1467]
[1727717460537,8.92,155.0,154.97,8.92]
[1727717460839,8.92,155.0,154.98,3.2265]
[1727717461329,3.2259,155.02,154.99,3.2264]
[1727717461533,0.12502,155.03,154.99,8.92]
[1727717462336,0.12502,155.03,155.0,3.2262]
[1727717462533,0.12502,155.03,154.99,8.92]
[1727717462835,0.12502,155.03,155.0,3.226]
[1727717463034,0.12502,155.03,155.0,8.92]
[1727717463535,0.12502,155.03,155.02,8.92]
[1727717463731,0.12502,155.03,155.02,12.1458]
[1727717464627,0.12502,155.03,155.02,3.2258]
[1727717464830,0.12502,155.03,155.02,12.1458]
[1727717467337,0.12502,155.03,155.01,3.2259]
[1727717468836,0.12502,155.03,155.0,8.92]
[1727717468837,3.35062,155.03,155.0,12.1461]
[1727717469233,3.35062,155.03,155.0,3.2261]
[1727717469630,3.226,155.02,154.95,17.7724]
[1727717469833,0.12502,155.03,154.95,17.7724]
[1727717471742,3.2261,155.01,154.98,3.2265]
[1727717472939,3.2259,155.02,155.0,3.2262]
[1727717473141,3.2259,155.02,154.95,17.7724]
[1727717473943,3.2259,155.02,154.99,3.2263]
[1727717474941,0.12502,155.03,154.95,17.7724]
[1727717475142,1.37642,155.03,154.95,16.5134]
[1727717475341,13.94,155.0,154.94,69.68]
[1727717475646,13.94,155.0,154.91,68.704299]
[1727717476034,3.2267,154.98,154.95,3.2271]
[1727717476241,13.94,155.0,154.91,68.704299]
[1727717477242,3.2265,154.99,154.91,68.704299]
[1727717477745,13.94,155.0,154.91,68.704299]
[1727717477945,13.94,154.98,154.91,1.47732]
[1727717478250,13.94,154.96,154.91,0.12502]
[1727717478736,3.2276,154.94,154.91,0.12502]
[1727717479151,1.328,154.97,154.91,0.12502]
[1727717479746,3.2272,154.96,154.92,3.2278]
[1727717480337,3.2273,154.95,154.92,3.2278]
[1727717483144,3.2276,154.94,154.91,3.35302]
[1727717483748,3.2274,154.95,154.92,3.2278]
[1727717483950,1.328,154.97,154.91,0.12502]
[1727717484254,13.94,154.98,154.91,0.12502]
[1727717485251,3.2272,154.96,154.93,3.2275]
[1727717488453,13.94,154.98,154.93,3.2275]
[1727717488654,3.2273,154.95,154.91,0.12502]
[1727717488857,13.94,154.98,154.91,0.12502]
[1727717489044,3.2279,154.92,154.91,0.12502]
[1727717489562,12.1579,154.92,154.91,0.12502]
[1727717490247,3.2285,154.9,154.86,69.72]
[1727717490452,8.93,154.89,154.86,69.72]
[1727717490860,12.1586,154.89,154.86,69.72]